fUST/lending_fUST_20250730
["ID","MTS","AMOUNT","RATE_DAILY","PERIOD"]
[375988205,1753812643929,-460.0,0.0001877,2]
[375988208,1753812643938,-637.10247921,0.0001877,2]
[375988210,1753812643948,-151.0,0.0001877,2]
[375988211,1753812643959,-460.0,0.0001877,2]
[375988213,1753812643969,-1705.34,0.0001877,2]
[375988215,1753812643978,-460.0,0.0001877,2]
[375988218,1753812643988,-460.0,0.0001877,2]
[375988220,1753812643998,-460.0,0.0001877,2]
[375988222,1753812644008,-202.30770372,0.000189,2]
[375988223,1753812644017,-4262.0,0.00018961,2]
[375988225,1753812644026,-460.0,0.00019038,2]
[375988227,1753812644036,-460.0,0.00019038,2]
[375988229,1753812644045,-460.0,0.00019038,2]
[375988232,1753812644055,-460.0,0.00019038,2]
[375988234,1753812644064,-489.19,0.00019038,2]
[375988236,1753812644073,-460.0,0.00019038,2]
[375988237,1753812644085,-460.0,0.00019038,2]
[375988240,1753812644095,-2091.52,0.00019038,2]
[375988242,1753812644104,-460.0,0.00019038,2]
[375988244,1753812644114,-460.0,0.00019038,2]
[375988246,1753812644123,-460.0,0.00019038,2]
[375988248,1753812644133,-1662.95,0.00019038,2]
[375988250,1753812644143,-460.0,0.00019038,2]
[375988252,1753812644153,-460.0,0.00019038,2]
[375988254,1753812644162,-579.38,0.00019038,2]
[375988256,1753812644172,-460.0,0.00019038,2]
[375988258,1753812644181,-460.0,0.00019038,2]
[375988260,1753812644190,-1064.28,0.00019038,2]
[375988262,1753812644200,-1469.03,0.00019038,2]
[375988264,1753812644211,-460.0,0.00019038,2]
[375988266,1753812644220,-460.0,0.00019038,2]
[375988268,1753812644229,-4496.36,0.00019038,2]
[375988270,1753812644239,-460.0,0.00019039,2]
[375988271,1753812644248,-460.0,0.00019039,2]
[375988274,1753812644258,-460.0,0.00019039,2]
[375988276,1753812644268,-460.0,0.00019039,2]
[375988277,1753812644277,-460.0,0.00019039,2]
[375988279,1753812644287,-381.32899754,0.00019039,2]
[375988282,1753812644296,-460.0,0.00019039,2]
[375988284,1753812644305,-460.0,0.00019039,2]
[375988285,1753812644315,-460.0,0.00019039,2]
[375988288,1753812644324,-460.0,0.00019039,2]
[375988290,1753812644333,-460.0,0.00019039,2]
[375988292,1753812644344,-460.0,0.00019039,2]
[375988294,1753812644353,-460.0,0.00019039,2]
[375988296,1753812644362,-208.88615722,0.00019039,2]
[375988297,1753812644371,-460.0,0.00019039,2]
[375988299,1753812644381,-460.0,0.00019039,2]
[375988301,1753812644390,-460.0,0.00019039,2]
[375988303,1753812644399,-460.0,0.00019039,2]
[375988305,1753812644408,-460.0,0.00019039,2]
[375988308,1753812644418,-304.02,0.00019039,2]
[375988310,1753812644428,-460.0,0.00019039,2]
[375988312,1753812644437,-460.0,0.00019039,2]
[375988314,1753812644446,-460.0,0.00019039,2]
[375988316,1753812644459,-460.0,0.00019039,2]
[375988318,1753812644469,-460.0,0.00019039,2]
[375988320,1753812644479,-460.0,0.00019039,2]
[375988322,1753812644488,-500.0,0.00019039,2]
[375988324,1753812644497,-460.0,0.00019039,2]
[375988326,1753812644507,-460.0,0.00019039,2]
[375988328,1753812644516,-362.58003905,0.00019039,2]
[375988330,1753812644525,-460.0,0.00019039,2]
[375988332,1753812644535,-460.0,0.00019039,2]
[375988334,1753812644544,-460.0,0.00019039,2]
[375988336,1753812644553,-460.0,0.00019039,2]
[375988338,1753812644562,-643.61,0.00019039,2]
[375988340,1753812644571,-460.0,0.00019039,2]
[375988342,1753812644580,-489.82,0.00019039,2]
[375988344,1753812644590,-460.0,0.00019039,2]
[375988346,1753812644599,-460.0,0.00019039,2]
[375988348,1753812644608,-460.0,0.00019039,2]
[375988350,1753812644616,-460.0,0.00019039,2]
[375988352,1753812644626,-460.0,0.00019039,2]
[375988354,1753812644635,-477.28,0.00019039,2]
[375988356,1753812644644,-460.0,0.00019039,2]
[375988358,1753812644654,-460.0,0.00019039,2]
[375988360,1753812644662,-460.0,0.00019039,2]
[375988362,1753812644672,-460.0,0.00019039,2]
[375988364,1753812644681,-460.0,0.00019039,2]
[375988366,1753812644690,-460.0,0.00019039,2]
[375988368,1753812644699,-460.0,0.00019039,2]
[375988370,1753812644709,-460.0,0.00019039,2]
[375988371,1753812644719,-460.0,0.00019039,2]
[375988374,1753812644728,-705.82,0.00019039,2]
[375988376,1753812644738,-460.0,0.00019039,2]
[375988378,1753812644749,-460.0,0.00019039,2]
[375988379,1753812644760,-460.0,0.00019039,2]
[375988381,1753812644769,-460.0,0.00019039,2]
[375988384,1753812644779,-460.0,0.00019039,2]
[375988385,1753812644789,-460.0,0.00019039,2]
[375988388,1753812644799,-460.0,0.00019039,2]
[375988390,1753812644809,-460.0,0.00019039,2]
[375988392,1753812644821,-527.67739694,0.00019039,2]
[375988394,1753812644830,-460.0,0.00019039,2]
[375988396,1753812644839,-460.0,0.00019039,2]
[375988398,1753812644848,-460.0,0.00019039,2]
[375988400,1753812644858,-460.0,0.00019039,2]
[375988402,1753812644868,-460.0,0.00019039,2]
[375988404,1753812644877,-382.30409525,0.00019039,2]
[375988406,1753812644887,-460.0,0.00019039,2]
[375988408,1753812644896,-460.0,0.00019039,2]
[375988410,1753812644906,-460.0,0.00019039,2]
[375988412,1753812644916,-460.0,0.00019039,2]
[375988414,1753812644925,-460.0,0.00019039,2]
[375988416,1753812644934,-460.0,0.00019039,2]
[375988418,1753812644943,-460.0,0.00019039,2]
[375988420,1753812644954,-460.0,0.00019039,2]
[375988421,1753812644963,-460.0,0.00019039,2]
[375988423,1753812644972,-295.29161895,0.00019039,2]
[375988425,1753812644982,-460.0,0.00019039,2]
[375988428,1753812644992,-460.0,0.00019039,2]
[375988429,1753812645001,-546.12,0.00019039,2]
[375988432,1753812645011,-460.0,0.00019039,2]
[375988434,1753812645020,-460.0,0.00019039,2]
[375988436,1753812645030,-460.0,0.00019039,2]
[375988438,1753812645040,-460.0,0.00019039,2]
[375988440,1753812645050,-460.0,0.00019039,2]
[375988442,1753812645060,-460.0,0.0001904,2]
[375988444,1753812645070,-460.0,0.0001904,2]
[375988446,1753812645080,-460.0,0.0001904,2]
[375988448,1753812645089,-460.0,0.0001904,2]
[375988450,1753812645098,-461.16201749,0.0001904,2]
[375988452,1753812645107,-460.0,0.0001904,2]
[375988454,1753812645117,-460.0,0.0001904,2]
[375988456,1753812645126,-460.0,0.0001904,2]
[375988458,1753812645136,-460.0,0.0001904,2]
[375988460,1753812645145,-460.0,0.0001904,2]
[375988462,1753812645156,-460.0,0.0001904,2]
[375988464,1753812645166,-151.0,0.0001904,2]
[375988466,1753812645175,-460.0,0.0001904,2]
[375988468,1753812645185,-460.0,0.0001904,2]
[375988470,1753812645194,-151.0,0.0001904,2]
[375988472,1753812645204,-460.0,0.0001904,2]
[375988474,1753812645213,-460.0,0.0001904,2]
[375988476,1753812645222,-151.0,0.0001904,2]
[375988478,1753812645231,-479.94,0.0001904,2]
[375988480,1753812645241,-460.0,0.0001904,2]
[375988482,1753812645251,-504.44,0.0001904,2]
[375988484,1753812645260,-460.0,0.0001904,2]
[375988486,1753812645269,-460.0,0.0001904,2]
[375988488,1753812645278,-460.0,0.0001904,2]
[375988490,1753812645287,-500.0,0.0001904,2]
[375988491,1753812645296,-500.0,0.0001904,2]
[375988492,1753812645305,-493.95,0.0001904,2]
[375988493,1753812645315,-460.0,0.0001904,2]
[375988494,1753812645325,-500.0,0.0001904,2]
[375988495,1753812645335,-460.0,0.0001904,2]
[375988496,1753812645344,-460.0,0.0001904,2]
[375988497,1753812645353,-461.94376967,0.0001904,2]
[375988498,1753812645363,-460.0,0.0001904,2]
[375988499,1753812645372,-460.0,0.0001904,2]
[375988500,1753812645381,-460.0,0.0001904,2]
[375988501,1753812645390,-460.0,0.0001904,2]
[375988502,1753812645399,-460.0,0.0001904,2]
[375988503,1753812645408,-460.0,0.0001904,2]
[375988504,1753812645418,-500.0,0.0001904,2]
[375988505,1753812645427,-1620.2,0.0001904,2]
[375988506,1753812645436,-460.0,0.0001904,2]
[375988507,1753812645446,-460.0,0.0001904,2]
[375988508,1753812645456,-460.0,0.0001904,2]
[375988510,1753812645466,-956.26,0.0001904,2]
[375988511,1753812645475,-724.14,0.0001904,2]
[375988513,1753812645485,-460.0,0.0001904,2]
[375988515,1753812645496,-689.92,0.0001904,2]
[375988517,1753812645506,-460.0,0.0001904,2]
[375988519,1753812645515,-151.0,0.0001904,2]
[375988521,1753812645525,-460.0,0.0001904,2]
[375988523,1753812645534,-460.0,0.0001904,2]
[375988525,1753812645543,-460.0,0.0001904,2]
[375988527,1753812645553,-516.53,0.0001904,2]
[375988529,1753812645562,-460.0,0.0001904,2]
[375988531,1753812645573,-460.0,0.0001904,2]
[375988534,1753812645585,-460.0,0.0001904,2]
[375988536,1753812645596,-460.0,0.0001904,2]
[375988538,1753812645606,-460.0,0.0001904,2]
[375988539,1753812645617,-460.0,0.0001904,2]
[375988542,1753812645627,-460.0,0.00019041,2]
[375988543,1753812645637,-460.0,0.00019041,2]
[375988545,1753812645649,-1586.69,0.00019041,2]
[375988548,1753812645659,-422.97409889,0.00019041,2]
[375988550,1753812645669,-460.0,0.00019041,2]
[375988552,1753812645679,-460.0,0.00019041,2]
[375988553,1753812645690,-460.0,0.00019041,2]
[375988555,1753812645701,-460.0,0.00019041,2]
[375988558,1753812645710,-357.90931253,0.00019041,2]
[375988559,1753812645720,-510.69,0.00019041,2]
[375988561,1753812645729,-215.89437178,0.00019041,2]
[375988563,1753812645739,-460.0,0.00019041,2]
[375988566,1753812645750,-460.0,0.00019041,2]
[375988567,1753812645760,-460.0,0.00019041,2]
[375988569,1753812645771,-460.0,0.00019041,2]
[375988571,1753812645780,-151.0,0.00019041,2]
[375988573,1753812645789,-481.94138122,0.00019041,2]
[375988575,1753812645799,-460.0,0.00019041,2]
[375988577,1753812645808,-460.0,0.00019041,2]
[375988579,1753812645818,-460.0,0.00019041,2]
[375988581,1753812645829,-460.0,0.00019041,2]
[375988583,1753812645838,-460.0,0.00019041,2]
[375988585,1753812645847,-460.0,0.00019041,2]
[375988587,1753812645857,-460.0,0.00019041,2]
[375988589,1753812645867,-1420.01,0.00019041,2]
[375988591,1753812645877,-151.0,0.00019041,2]
[375988593,1753812645886,-460.0,0.00019041,2]
[375988595,1753812645896,-460.0,0.00019041,2]
[375988597,1753812645906,-460.0,0.00019041,2]
[375988599,1753812645915,-460.0,0.00019041,2]
[375988601,1753812645924,-460.0,0.00019041,2]
[375988603,1753812645934,-460.0,0.00019041,2]
[375988605,1753812645943,-460.0,0.00019041,2]
[375988607,1753812645953,-460.0,0.00019041,2]
[375988609,1753812645963,-500.0,0.00019041,2]
[375988611,1753812645972,-460.0,0.00019041,2]
[375988613,1753812645982,-478.55251154,0.00019041,2]
[375988615,1753812645991,-460.0,0.00019041,2]
[375988617,1753812646000,-460.0,0.00019041,2]
[375988619,1753812646009,-460.0,0.00019041,2]
[375988622,1753812646019,-151.0,0.00019041,2]
[375988624,1753812646028,-460.0,0.00019041,2]
[375988625,1753812646038,-460.0,0.00019041,2]
[375988627,1753812646047,-460.0,0.00019041,2]
[375988629,1753812646058,-500.0,0.00019041,2]
[375988631,1753812646067,-500.0,0.00019041,2]
[375988633,1753812646077,-460.0,0.00019041,2]
[375988635,1753812646086,-500.0,0.00019041,2]
[375988637,1753812646096,-460.0,0.00019041,2]
[375988639,1753812646105,-460.0,0.00019041,2]
[375988641,1753812646115,-500.0,0.00019041,2]
[375988643,1753812646125,-500.0,0.00019041,2]
[375988646,1753812646136,-460.0,0.00019041,2]
[375988648,1753812646146,-452.99471015,0.00019041,2]
[375988649,1753812646156,-460.0,0.00019041,2]
[375988651,1753812646165,-460.0,0.00019041,2]
[375988653,1753812646174,-461.14643806,0.00019042,2]
[375988655,1753812646183,-460.0,0.00019042,2]
[375988657,1753812646193,-460.0,0.00019042,2]
[375988659,1753812646203,-460.0,0.00019042,2]
[375988661,1753812646212,-460.0,0.00019042,2]
[375988664,1753812646224,-152.780624,0.00019042,2]
[375988665,1753812646235,-313.79036537,0.00019042,2]
[375988667,1753812646244,-151.0,0.00019042,2]
[375988669,1753812646253,-460.0,0.00019042,2]
[375988671,1753812646262,-151.0,0.00019042,2]
[375988673,1753812646271,-1488.32,0.00019042,2]
[375988675,1753812646281,-460.0,0.00019042,2]
[375988677,1753812646290,-460.0,0.00019042,2]
[375988679,1753812646300,-460.0,0.00019042,2]
[375988681,1753812646309,-483.25088908,0.00019042,2]
[375988683,1753812646319,-500.0,0.00019042,2]
[375988685,1753812646328,-460.0,0.00019042,2]
[375988687,1753812646338,-460.0,0.00019042,2]
[375988689,1753812646347,-460.0,0.00019042,2]
[375988691,1753812646356,-500.0,0.00019042,2]
[375988693,1753812646365,-635.4,0.00019042,2]
[375988695,1753812646374,-460.0,0.00019042,2]
[375988697,1753812646383,-460.0,0.00019042,2]
[375988700,1753812646393,-460.0,0.00019042,2]
[375988702,1753812646402,-460.0,0.00019042,2]
[375988704,1753812646412,-460.0,0.00019042,2]
[375988705,1753812646423,-460.0,0.00019042,2]
[375988707,1753812646432,-7759.41,0.00019042,2]
[375988709,1753812646441,-500.0,0.00019042,2]
[375988711,1753812646450,-500.0,0.00019042,2]
[375988713,1753812646461,-1104.46,0.00019042,2]
[375988715,1753812646470,-460.0,0.00019042,2]
[375988717,1753812646479,-1355.72,0.00019042,2]
[375988719,1753812646488,-151.0,0.00019043,2]
[375988721,1753812646497,-151.0,0.00019043,2]
[375988724,1753812646507,-500.0,0.00019043,2]
[375988725,1753812646517,-1482.46,0.00019043,2]
[375988727,1753812646526,-1730.21,0.00019043,2]
[375988729,1753812646535,-460.0,0.00019043,2]
[375988731,1753812646544,-460.0,0.00019044,2]
[375988733,1753812646553,-1000.0,0.00019044,2]
[375988735,1753812646562,-460.0,0.00019044,2]
[375988737,1753812646571,-523.24,0.00019044,2]
[375988739,1753812646580,-460.0,0.00019044,2]
[375988741,1753812646589,-1705.34,0.00019044,2]
[375988743,1753812646599,-460.0,0.00019044,2]
[375988745,1753812646608,-460.0,0.00019044,2]
[375988746,1753812646617,-460.0,0.00019044,2]
[375988761,1753812646626,-500.0,0.00019073,2]
[375988763,1753812646757,-200.0,0.00019138,15]
[375988765,1753812646767,-200.0,0.00019138,15]
[375988767,1753812646776,-200.0,0.00019138,15]
[375988769,1753812646786,-200.0,0.00019138,15]
[375988771,1753812646797,-500.0,0.00019177,2]
[375988773,1753812646806,-666.0,0.00019178,2]
[375988775,1753812646815,-447.092689,0.00019178,2]
[375988777,1753812646826,-431.33577013,0.00019312,2]
[375988779,1753812646837,-2091.52,0.00019312,2]
[375988781,1753812646847,-460.0,0.00019312,2]
[375988783,1753812646856,-460.0,0.00019312,2]
[375988785,1753812646866,-460.0,0.00019312,2]
[375988787,1753812646875,-1662.95,0.00019312,2]
[375988789,1753812646885,-460.0,0.00019312,2]
[375988791,1753812646895,-460.0,0.00019312,2]
[375988793,1753812646904,-460.0,0.00019312,2]
[375988795,1753812646913,-1064.28,0.00019312,2]
[375988797,1753812646923,-1469.03,0.00019312,2]
[375988800,1753812646933,-460.0,0.00019312,2]
[375988802,1753812646942,-4496.36,0.00019312,2]
[375988804,1753812646951,-460.0,0.00019313,2]
[375988805,1753812646963,-460.0,0.00019313,2]
[375988808,1753812646972,-460.0,0.00019313,2]
[375988809,1753812646981,-460.0,0.00019313,2]
[375988811,1753812646991,-460.0,0.00019313,2]
[375988813,1753812647000,-460.0,0.00019313,2]
[375988815,1753812647010,-460.0,0.00019313,2]
[375988817,1753812647019,-643.61,0.00019313,2]
[375988819,1753812647028,-460.0,0.00019313,2]
[375988821,1753812647038,-460.0,0.00019313,2]
[375988823,1753812647047,-477.28,0.00019313,2]
[375988825,1753812647056,-460.0,0.00019313,2]
[375988827,1753812647065,-460.0,0.00019313,2]
[375988829,1753812647075,-460.0,0.00019313,2]
[375988831,1753812647085,-460.0,0.00019313,2]
[375988833,1753812647095,-705.82,0.00019313,2]
[375988835,1753812647104,-460.0,0.00019313,2]
[375988837,1753812647113,-281.06838245,0.00019313,2]
[375988839,1753812647122,-460.0,0.00019313,2]
[375988841,1753812647131,-460.0,0.00019313,2]
[375988843,1753812647142,-460.0,0.00019313,2]
[375988845,1753812647151,-460.0,0.00019313,2]
[375988847,1753812647161,-460.0,0.00019313,2]
[375988849,1753812647170,-471.53660898,0.00019313,2]
[375988851,1753812647180,-460.0,0.00019313,2]
[375988853,1753812647189,-460.0,0.00019313,2]
[375988855,1753812647198,-460.0,0.00019313,2]
[375988857,1753812647208,-532.21,0.00019313,2]
[375988859,1753812647217,-460.0,0.00019313,2]
[375988861,1753812647226,-460.0,0.00019313,2]
[375988863,1753812647235,-546.12,0.00019313,2]
[375988865,1753812647244,-460.0,0.00019313,2]
[375988867,1753812647253,-460.0,0.00019313,2]
[375988869,1753812647262,-460.0,0.00019314,2]
[375988871,1753812647271,-460.0,0.00019314,2]
[375988873,1753812647280,-460.0,0.00019314,2]
[375988874,1753812647289,-504.44,0.00019314,2]
[375988877,1753812647299,-460.0,0.00019314,2]
[375988879,1753812647308,-460.0,0.00019314,2]
[375988880,1753812647318,-493.95,0.00019314,2]
[375988882,1753812647326,-532.47,0.00019314,2]
[375988884,1753812647336,-460.0,0.00019314,2]
[375988886,1753812647345,-590.32,0.00019314,2]
[375988888,1753812647354,-460.0,0.00019314,2]
[375988890,1753812647364,-460.0,0.00019314,2]
[375988893,1753812647373,-1620.2,0.00019314,2]
[375988894,1753812647382,-460.0,0.00019314,2]
[375988896,1753812647391,-460.0,0.00019314,2]
[375988898,1753812647400,-956.26,0.00019314,2]
[375988900,1753812647410,-724.14,0.00019314,2]
[375988902,1753812647419,-460.0,0.00019314,2]
[375988904,1753812647428,-689.92,0.00019314,2]
[375988906,1753812647438,-460.0,0.00019314,2]
[375988909,1753812647448,-460.0,0.00019314,2]
[375988910,1753812647458,-460.0,0.00019314,2]
[375988912,1753812647467,-516.53,0.00019314,2]
[375988914,1753812647476,-460.0,0.00019314,2]
[375988916,1753812647486,-460.0,0.00019314,2]
[375988918,1753812647496,-460.0,0.00019314,2]
[375988920,1753812647505,-460.0,0.00019314,2]
[375988922,1753812647515,-460.0,0.00019314,2]
[375988924,1753812647525,-460.0,0.00019315,2]
[375988926,1753812647534,-460.0,0.00019315,2]
[375988929,1753812647544,-1586.69,0.00019315,2]
[375988930,1753812647553,-463.50643555,0.00019315,2]
[375988933,1753812647563,-460.0,0.00019315,2]
[375988934,1753812647573,-462.0,0.00019315,2]
[375988936,1753812647583,-460.0,0.00019315,2]
[375988938,1753812647592,-460.0,0.00019315,2]
[375988940,1753812647601,-151.0,0.00019315,2]
[375988942,1753812647611,-460.0,0.00019315,2]
[375988944,1753812647621,-460.0,0.00019315,2]
[375988946,1753812647630,-1420.01,0.00019315,2]
[375988948,1753812647640,-585.52,0.00019315,2]
[375988950,1753812647650,-460.0,0.00019315,2]
[375988952,1753812647660,-460.0,0.00019315,2]
[375988954,1753812647669,-460.0,0.00019315,2]
[375988956,1753812647679,-460.0,0.00019315,2]
[375988958,1753812647688,-460.0,0.00019315,2]
[375988960,1753812647698,-460.0,0.00019315,2]
[375988962,1753812647709,-460.0,0.00019315,2]
[375988964,1753812647719,-500.0,0.00019315,2]
[375988966,1753812647729,-460.0,0.00019315,2]
[375988968,1753812647738,-460.0,0.00019316,2]
[375988971,1753812647751,-269.398966,0.00019316,2]
[375988973,1753812647762,-1488.32,0.00019316,2]
[375988974,1753812647771,-460.0,0.00019316,2]
[375988976,1753812647781,-460.0,0.00019316,2]
[375988979,1753812647792,-461.55339547,0.00019316,2]
[375988980,1753812647802,-450.28403271,0.00019316,2]
[375988982,1753812647812,-460.0,0.00019316,2]
[375988985,1753812647821,-7759.41,0.00019316,2]
[375988986,1753812647833,-500.0,0.00019316,2]
[375988988,1753812647844,-1104.46,0.00019316,2]
[375988990,1753812647853,-1355.72,0.00019316,2]
[375988992,1753812647863,-500.0,0.00019317,2]
[375988994,1753812647873,-500.0,0.00019317,2]
[375988996,1753812647883,-593.24961039,0.00019317,2]
[375988999,1753812647894,-500.0,0.00019317,2]
[375989000,1753812647903,-514.60221537,0.00019317,2]
[375989002,1753812647913,-151.0,0.00019317,2]
[375989004,1753812647923,-1482.46,0.00019317,2]
[375989006,1753812647933,-1730.21,0.00019317,2]
[375989008,1753812647942,-460.0,0.00019318,2]
[375989010,1753812647952,-460.0,0.00019318,2]
[375989012,1753812647965,-500.0,0.00019318,2]
[375989014,1753812647975,-500.0,0.00019318,2]
[375989017,1753812647984,-500.0,0.00019318,2]
[375989018,1753812647994,-625.6,0.00019318,2]
[375989020,1753812648004,-1705.34,0.00019318,2]
[375989022,1753812648014,-460.0,0.00019318,2]
[375989025,1753812648024,-214.91980558,0.00019351,2]
[375989026,1753812648033,-160.0,0.00019351,2]
[375989028,1753812648043,-460.5085953,0.00019351,2]
[375989030,1753812648053,-12637.12721421,0.00019351,2]
[375989032,1753812648063,-231.39372452,0.00019351,2]
[375989034,1753812648073,-526.67226028,0.00019351,2]
[375989036,1753812648082,-841.06558547,0.00019351,2]
[375989038,1753812648092,-160.0,0.00019351,2]
[375989041,1753812648104,-160.0,0.00019351,2]
[375989042,1753812648114,-216.1031716,0.00019351,2]
[375989044,1753812648123,-160.0,0.00019351,2]
[375989046,1753812648134,-160.0,0.00019351,2]
[375989048,1753812648143,-160.0,0.00019351,2]
[375989050,1753812648153,-168.0,0.00019385,2]
[375989052,1753812648162,-160.0,0.00019467,2]
[375989054,1753812648172,-168.0,0.00019494,2]
[375989056,1753812648181,-174.277482,0.00019549,2]
[375989058,1753812648191,-343.84,0.00019584,2]
[375989060,1753812648200,-2091.52,0.00019586,2]
[375989062,1753812648210,-460.0,0.00019586,2]
[375989064,1753812648219,-1662.95,0.00019586,2]
[375989066,1753812648228,-460.0,0.00019586,2]
[375989068,1753812648237,-460.0,0.00019586,2]
[375989070,1753812648246,-460.0,0.00019586,2]
[375989072,1753812648255,-1064.28,0.00019586,2]
[375989074,1753812648265,-1469.03,0.00019586,2]
[375989075,1753812648274,-460.0,0.00019586,2]
[375989077,1753812648283,-4496.36,0.00019586,2]
[375989079,1753812648292,-460.0,0.00019587,2]
[375989081,1753812648301,-460.0,0.00019587,2]
[375989084,1753812648315,-573.93205268,0.00019587,2]
[375989086,1753812648324,-460.0,0.00019587,2]
[375989088,1753812648333,-460.0,0.00019587,2]
[375989090,1753812648342,-643.61,0.00019587,2]
[375989091,1753812648351,-460.0,0.00019587,2]
[375989093,1753812648360,-477.28,0.00019587,2]
[375989095,1753812648370,-460.0,0.00019587,2]
[375989097,1753812648380,-705.82,0.00019587,2]
[375989100,1753812648389,-460.0,0.00019587,2]
[375989101,1753812648399,-460.0,0.00019587,2]
[375989104,1753812648409,-460.0,0.00019587,2]
[375989105,1753812648420,-460.0,0.00019587,2]
[375989107,1753812648433,-460.0,0.00019587,2]
[375989108,1753812648446,-460.0,0.00019587,2]
[375989109,1753812648456,-546.12,0.00019587,2]
[375989110,1753812648469,-460.0,0.00019588,2]
[375989111,1753812648479,-151.0,0.00019588,2]
[375989112,1753812648489,-504.44,0.00019588,2]
[375989113,1753812648502,-460.0,0.00019588,2]
[375989114,1753812648511,-460.0,0.00019588,2]
[375989115,1753812648521,-493.95,0.00019588,2]
[375989116,1753812648531,-460.0,0.00019588,2]
[375989117,1753812648541,-460.0,0.00019588,2]
[375989118,1753812648551,-460.0,0.00019588,2]
[375989119,1753812648562,-1620.2,0.00019588,2]
[375989120,1753812648572,-460.0,0.00019588,2]
[375989121,1753812648581,-956.26,0.00019588,2]
[375989122,1753812648591,-724.14,0.00019588,2]
[375989123,1753812648600,-460.0,0.00019588,2]
[375989124,1753812648610,-689.92,0.00019588,2]
[375989126,1753812648619,-517.17,0.00019588,2]
[375989128,1753812648629,-516.53,0.00019588,2]
[375989130,1753812648639,-460.0,0.00019588,2]
[375989132,1753812648651,-460.0,0.00019588,2]
[375989134,1753812648661,-460.0,0.00019588,2]
[375989136,1753812648670,-201.4121682,0.00019589,2]
[375989138,1753812648679,-460.0,0.00019589,2]
[375989140,1753812648688,-1586.69,0.00019589,2]
[375989142,1753812648698,-460.0,0.00019589,2]
[375989144,1753812648707,-460.0,0.00019589,2]
[375989146,1753812648718,-1420.01,0.00019589,2]
[375989148,1753812648727,-460.0,0.00019589,2]
[375989150,1753812648736,-373.40473262,0.00019589,2]
[375989152,1753812648746,-460.0,0.00019589,2]
[375989154,1753812648759,-460.0,0.00019589,2]
[375989156,1753812648768,-596.3951263,0.00019589,2]
[375989158,1753812648777,-460.0,0.00019589,2]
[375989160,1753812648788,-1488.32,0.0001959,2]
[375989162,1753812648797,-535.21,0.0001959,2]
[375989164,1753812648808,-7759.41,0.0001959,2]
[375989166,1753812648817,-1104.46,0.0001959,2]
[375989168,1753812648826,-1355.72,0.0001959,2]
[375989170,1753812648839,-151.0,0.00019591,2]
[375989172,1753812648849,-1482.46,0.00019591,2]
[375989174,1753812648859,-1730.21,0.00019591,2]
[375989176,1753812648869,-1705.34,0.00019592,2]
[375989178,1753812648878,-460.0,0.00019592,2]